{"text_format":"1","workbook":"xlsx","n_sheets":7,"sheets":["Summary","0 Bedroom Analysis","1 Bedroom Analysis","2 Bedroom Analysis","3 Bedroom Analysis","4 Bedroom Analysis","5 Bedroom Analysis"],"not_rendered":{"charts":0,"images":0,"macros":0,"external_links":0,"defined_names":6,"comments":0,"pivot_tables":0},"unopened":[],"bounds":{"document_bytes":16777216,"sheet_cells":100000,"rows_first":2000,"rows_last":500,"rows_between":2000,"halvings":0,"cell_chars":16384,"cell_head_chars":4096},"cells_cut":0,"cells_raw":0,"read":"whole","date_system":"1900"}

{"sheet":"Summary","index":0,"n_rows":30,"n_cols":8,"rows_kept":30,"cut":false,"hidden":false,"merged":[[1,2,1,4],[1,6,1,8],[1,0,1,1],[2,0,2,1],[3,0,3,1],[2,2,2,3],[3,2,3,3]]}
[]
["Property Name:",null,null,null,null,"Date"]
["Contract Number:"]
["Project Number:"]
[]
[]
[]
[null,null,null,null,"Contract Units","Units to be Sampled"]
[null,null,null,"0 Bedroom Units",null,{"$f":"IF(E9<=20,E9,IF(E9<=61,20,ROUND(H9,0)))","v":0},null,{"$f":"0.44408896/(0.01444+(0.44408896/E9))","v":{"$error":"#DIV/0!"}}]
[null,null,null,"1 Bedroom Units",null,{"$f":"IF(E10<=20,E10,IF(E10<=61,20,ROUND(H10,0)))","v":0},null,{"$f":"0.44408896/(0.01444+(0.44408896/E10))","v":{"$error":"#DIV/0!"}}]
[null,null,null,"2 Bedroom Units",null,0,null,{"$error":"#DIV/0!"}]
[null,null,null,"3 Bedroom Units",null,0,null,{"$error":"#DIV/0!"}]
[null,null,null,"4 Bedroom Units",null,0,null,{"$error":"#DIV/0!"}]
[null,null,null,"5 Bedroom Units",null,0,null,{"$error":"#DIV/0!"}]
[]
[null,null,null,null,"Average as Calculated from Analysis"]
[null,null,null,"0 Bedroom Units",{"$f":"IFERROR(AVERAGE('0 Bedroom Analysis'!N2:N46),\"N/A\")","v":"N/A"}]
[null,null,null,"1 Bedroom Units",{"$f":"IFERROR(AVERAGE('1 Bedroom Analysis'!N2:N46),\"N/A\")","v":"N/A"}]
[null,null,null,"2 Bedroom Units",{"$f":"IFERROR(AVERAGE('2 Bedroom Analysis'!N2:N46),\"N/A\")","v":"N/A"}]
[null,null,null,"3 Bedroom Units",{"$f":"IFERROR(AVERAGE('3 Bedroom Analysis'!N2:N46),\"N/A\")","v":"N/A"}]
[null,null,null,"4 Bedroom Units",{"$f":"IFERROR(AVERAGE('4 Bedroom Analysis'!N2:N46),\"N/A\")","v":"N/A"}]
[null,null,null,"5 Bedroom Units",{"$f":"IFERROR(AVERAGE('5 Bedroom Analysis'!N2:N46),\"N/A\")","v":"N/A"}]
[]
[null,null,null,null,"Current Utility Allowance","Proposed Utility Allowance"]
[null,null,null,"0 Bedroom Units"]
[null,null,null,"1 Bedroom Units"]
[null,null,null,"2 Bedroom Units"]
[null,null,null,"3 Bedroom Units"]
[null,null,null,"4 Bedroom Units"]
[null,null,null,"5 Bedroom Units"]

{"sheet":"0 Bedroom Analysis","index":1,"n_rows":46,"n_cols":14,"rows_kept":46,"cut":false,"hidden":false,"merged":[]}
["Unit","Month 1","Month 2","Month 3","Month 4","Month 5","Month 6","Month 7","Month 8","Month 9","Month 10","Month 11","Month 12","Average"]
["Unit 1",null,null,null,null,null,null,null,null,null,null,null,null,{"$f":"IFERROR(AVERAGE(B2:M2),\"\")","v":""}]
["Unit 2",null,null,null,null,null,null,null,null,null,null,null,null,{"$f":"IFERROR(AVERAGE(B3:M3),\"\")","v":""}]
["Unit 3",null,null,null,null,null,null,null,null,null,null,null,null,{"$f":"IFERROR(AVERAGE(B4:M4),\"\")","v":""}]
["Unit 4",null,null,null,null,null,null,null,null,null,null,null,null,""]
["Unit 5",null,null,null,null,null,null,null,null,null,null,null,null,""]
["Unit 6",null,null,null,null,null,null,null,null,null,null,null,null,""]
["Unit 7",null,null,null,null,null,null,null,null,null,null,null,null,""]
["Unit 8",null,null,null,null,null,null,null,null,null,null,null,null,""]
["Unit 9",null,null,null,null,null,null,null,null,null,null,null,null,""]
["Unit 10",null,null,null,null,null,null,null,null,null,null,null,null,""]
["Unit 11",null,null,null,null,null,null,null,null,null,null,null,null,""]
["Unit 12",null,null,null,null,null,null,null,null,null,null,null,null,""]
["Unit 13",null,null,null,null,null,null,null,null,null,null,null,null,""]
["Unit 14",null,null,null,null,null,null,null,null,null,null,null,null,""]
["Unit 15",null,null,null,null,null,null,null,null,null,null,null,null,""]
["Unit 16",null,null,null,null,null,null,null,null,null,null,null,null,""]
["Unit 17",null,null,null,null,null,null,null,null,null,null,null,null,""]
["Unit 18",null,null,null,null,null,null,null,null,null,null,null,null,""]
["Unit 19",null,null,null,null,null,null,null,null,null,null,null,null,""]
["Unit 20",null,null,null,null,null,null,null,null,null,null,null,null,""]
["Unit 21",null,null,null,null,null,null,null,null,null,null,null,null,""]
["Unit 22",null,null,null,null,null,null,null,null,null,null,null,null,""]
["Unit 23",null,null,null,null,null,null,null,null,null,null,null,null,""]
["Unit 24",null,null,null,null,null,null,null,null,null,null,null,null,""]
["Unit 25",null,null,null,null,null,null,null,null,null,null,null,null,""]
["Unit 26",null,null,null,null,null,null,null,null,null,null,null,null,""]
["Unit 27",null,null,null,null,null,null,null,null,null,null,null,null,""]
["Unit 28",null,null,null,null,null,null,null,null,null,null,null,null,""]
["Unit 29",null,null,null,null,null,null,null,null,null,null,null,null,""]
["Unit 30",null,null,null,null,null,null,null,null,null,null,null,null,""]
["Unit 31",null,null,null,null,null,null,null,null,null,null,null,null,""]
["Unit 32",null,null,null,null,null,null,null,null,null,null,null,null,""]
["Unit 33",null,null,null,null,null,null,null,null,null,null,null,null,""]
["Unit 34",null,null,null,null,null,null,null,null,null,null,null,null,""]
["Unit 35",null,null,null,null,null,null,null,null,null,null,null,null,""]
["Unit 36",null,null,null,null,null,null,null,null,null,null,null,null,""]
["Unit 37",null,null,null,null,null,null,null,null,null,null,null,null,""]
["Unit 38",null,null,null,null,null,null,null,null,null,null,null,null,""]
["Unit 39",null,null,null,null,null,null,null,null,null,null,null,null,""]
["Unit 40",null,null,null,null,null,null,null,null,null,null,null,null,""]
["Unit 41",null,null,null,null,null,null,null,null,null,null,null,null,""]
["Unit 42",null,null,null,null,null,null,null,null,null,null,null,null,""]
["Unit 43",null,null,null,null,null,null,null,null,null,null,null,null,""]
["Unit 44",null,null,null,null,null,null,null,null,null,null,null,null,""]
["Unit 45",null,null,null,null,null,null,null,null,null,null,null,null,""]

{"sheet":"1 Bedroom Analysis","index":2,"n_rows":46,"n_cols":14,"rows_kept":46,"cut":false,"hidden":false,"merged":[]}
["Unit","Month 1","Month 2","Month 3","Month 4","Month 5","Month 6","Month 7","Month 8","Month 9","Month 10","Month 11","Month 12","Average"]
["Unit 1",null,null,null,null,null,null,null,null,null,null,null,null,{"$f":"IFERROR(AVERAGE(B2:M2),\"\")","v":""}]
["Unit 2",null,null,null,null,null,null,null,null,null,null,null,null,{"$f":"IFERROR(AVERAGE(B3:M3),\"\")","v":""}]
["Unit 3",null,null,null,null,null,null,null,null,null,null,null,null,{"$f":"IFERROR(AVERAGE(B4:M4),\"\")","v":""}]
["Unit 4",null,null,null,null,null,null,null,null,null,null,null,null,""]
["Unit 5",null,null,null,null,null,null,null,null,null,null,null,null,""]
["Unit 6",null,null,null,null,null,null,null,null,null,null,null,null,""]
["Unit 7",null,null,null,null,null,null,null,null,null,null,null,null,""]
["Unit 8",null,null,null,null,null,null,null,null,null,null,null,null,""]
["Unit 9",null,null,null,null,null,null,null,null,null,null,null,null,""]
["Unit 10",null,null,null,null,null,null,null,null,null,null,null,null,""]
["Unit 11",null,null,null,null,null,null,null,null,null,null,null,null,""]
["Unit 12",null,null,null,null,null,null,null,null,null,null,null,null,""]
["Unit 13",null,null,null,null,null,null,null,null,null,null,null,null,""]
["Unit 14",null,null,null,null,null,null,null,null,null,null,null,null,""]
["Unit 15",null,null,null,null,null,null,null,null,null,null,null,null,""]
["Unit 16",null,null,null,null,null,null,null,null,null,null,null,null,""]
["Unit 17",null,null,null,null,null,null,null,null,null,null,null,null,""]
["Unit 18",null,null,null,null,null,null,null,null,null,null,null,null,""]
["Unit 19",null,null,null,null,null,null,null,null,null,null,null,null,""]
["Unit 20",null,null,null,null,null,null,null,null,null,null,null,null,""]
["Unit 21",null,null,null,null,null,null,null,null,null,null,null,null,""]
["Unit 22",null,null,null,null,null,null,null,null,null,null,null,null,""]
["Unit 23",null,null,null,null,null,null,null,null,null,null,null,null,""]
["Unit 24",null,null,null,null,null,null,null,null,null,null,null,null,""]
["Unit 25",null,null,null,null,null,null,null,null,null,null,null,null,""]
["Unit 26",null,null,null,null,null,null,null,null,null,null,null,null,""]
["Unit 27",null,null,null,null,null,null,null,null,null,null,null,null,""]
["Unit 28",null,null,null,null,null,null,null,null,null,null,null,null,""]
["Unit 29",null,null,null,null,null,null,null,null,null,null,null,null,""]
["Unit 30",null,null,null,null,null,null,null,null,null,null,null,null,""]
["Unit 31",null,null,null,null,null,null,null,null,null,null,null,null,""]
["Unit 32",null,null,null,null,null,null,null,null,null,null,null,null,""]
["Unit 33",null,null,null,null,null,null,null,null,null,null,null,null,""]
["Unit 34",null,null,null,null,null,null,null,null,null,null,null,null,""]
["Unit 35",null,null,null,null,null,null,null,null,null,null,null,null,""]
["Unit 36",null,null,null,null,null,null,null,null,null,null,null,null,""]
["Unit 37",null,null,null,null,null,null,null,null,null,null,null,null,""]
["Unit 38",null,null,null,null,null,null,null,null,null,null,null,null,""]
["Unit 39",null,null,null,null,null,null,null,null,null,null,null,null,""]
["Unit 40",null,null,null,null,null,null,null,null,null,null,null,null,""]
["Unit 41",null,null,null,null,null,null,null,null,null,null,null,null,""]
["Unit 42",null,null,null,null,null,null,null,null,null,null,null,null,""]
["Unit 43",null,null,null,null,null,null,null,null,null,null,null,null,""]
["Unit 44",null,null,null,null,null,null,null,null,null,null,null,null,""]
["Unit 45",null,null,null,null,null,null,null,null,null,null,null,null,""]

{"sheet":"2 Bedroom Analysis","index":3,"n_rows":46,"n_cols":14,"rows_kept":46,"cut":false,"hidden":false,"merged":[]}
["Unit","Month 1","Month 2","Month 3","Month 4","Month 5","Month 6","Month 7","Month 8","Month 9","Month 10","Month 11","Month 12","Average"]
["Unit 1",null,null,null,null,null,null,null,null,null,null,null,null,{"$f":"IFERROR(AVERAGE(B2:M2),\"\")","v":""}]
["Unit 2",null,null,null,null,null,null,null,null,null,null,null,null,{"$f":"IFERROR(AVERAGE(B3:M3),\"\")","v":""}]
["Unit 3",null,null,null,null,null,null,null,null,null,null,null,null,""]
["Unit 4",null,null,null,null,null,null,null,null,null,null,null,null,""]
["Unit 5",null,null,null,null,null,null,null,null,null,null,null,null,""]
["Unit 6",null,null,null,null,null,null,null,null,null,null,null,null,""]
["Unit 7",null,null,null,null,null,null,null,null,null,null,null,null,""]
["Unit 8",null,null,null,null,null,null,null,null,null,null,null,null,""]
["Unit 9",null,null,null,null,null,null,null,null,null,null,null,null,""]
["Unit 10",null,null,null,null,null,null,null,null,null,null,null,null,""]
["Unit 11",null,null,null,null,null,null,null,null,null,null,null,null,""]
["Unit 12",null,null,null,null,null,null,null,null,null,null,null,null,""]
["Unit 13",null,null,null,null,null,null,null,null,null,null,null,null,""]
["Unit 14",null,null,null,null,null,null,null,null,null,null,null,null,""]
["Unit 15",null,null,null,null,null,null,null,null,null,null,null,null,""]
["Unit 16",null,null,null,null,null,null,null,null,null,null,null,null,""]
["Unit 17",null,null,null,null,null,null,null,null,null,null,null,null,""]
["Unit 18",null,null,null,null,null,null,null,null,null,null,null,null,""]
["Unit 19",null,null,null,null,null,null,null,null,null,null,null,null,""]
["Unit 20",null,null,null,null,null,null,null,null,null,null,null,null,""]
["Unit 21",null,null,null,null,null,null,null,null,null,null,null,null,""]
["Unit 22",null,null,null,null,null,null,null,null,null,null,null,null,""]
["Unit 23",null,null,null,null,null,null,null,null,null,null,null,null,""]
["Unit 24",null,null,null,null,null,null,null,null,null,null,null,null,""]
["Unit 25",null,null,null,null,null,null,null,null,null,null,null,null,""]
["Unit 26",null,null,null,null,null,null,null,null,null,null,null,null,""]
["Unit 27",null,null,null,null,null,null,null,null,null,null,null,null,""]
["Unit 28",null,null,null,null,null,null,null,null,null,null,null,null,""]
["Unit 29",null,null,null,null,null,null,null,null,null,null,null,null,""]
["Unit 30",null,null,null,null,null,null,null,null,null,null,null,null,""]
["Unit 31",null,null,null,null,null,null,null,null,null,null,null,null,""]
["Unit 32",null,null,null,null,null,null,null,null,null,null,null,null,""]
["Unit 33",null,null,null,null,null,null,null,null,null,null,null,null,""]
["Unit 34",null,null,null,null,null,null,null,null,null,null,null,null,""]
["Unit 35",null,null,null,null,null,null,null,null,null,null,null,null,""]
["Unit 36",null,null,null,null,null,null,null,null,null,null,null,null,""]
["Unit 37",null,null,null,null,null,null,null,null,null,null,null,null,""]
["Unit 38",null,null,null,null,null,null,null,null,null,null,null,null,""]
["Unit 39",null,null,null,null,null,null,null,null,null,null,null,null,""]
["Unit 40",null,null,null,null,null,null,null,null,null,null,null,null,""]
["Unit 41",null,null,null,null,null,null,null,null,null,null,null,null,""]
["Unit 42",null,null,null,null,null,null,null,null,null,null,null,null,""]
["Unit 43",null,null,null,null,null,null,null,null,null,null,null,null,""]
["Unit 44",null,null,null,null,null,null,null,null,null,null,null,null,""]
["Unit 45",null,null,null,null,null,null,null,null,null,null,null,null,""]

{"sheet":"3 Bedroom Analysis","index":4,"n_rows":46,"n_cols":14,"rows_kept":46,"cut":false,"hidden":false,"merged":[]}
["Unit","Month 1","Month 2","Month 3","Month 4","Month 5","Month 6","Month 7","Month 8","Month 9","Month 10","Month 11","Month 12","Average"]
["Unit 1",null,null,null,null,null,null,null,null,null,null,null,null,{"$f":"IFERROR(AVERAGE(B2:M2),\"\")","v":""}]
["Unit 2",null,null,null,null,null,null,null,null,null,null,null,null,{"$f":"IFERROR(AVERAGE(B3:M3),\"\")","v":""}]
["Unit 3",null,null,null,null,null,null,null,null,null,null,null,null,""]
["Unit 4",null,null,null,null,null,null,null,null,null,null,null,null,""]
["Unit 5",null,null,null,null,null,null,null,null,null,null,null,null,""]
["Unit 6",null,null,null,null,null,null,null,null,null,null,null,null,""]
["Unit 7",null,null,null,null,null,null,null,null,null,null,null,null,""]
["Unit 8",null,null,null,null,null,null,null,null,null,null,null,null,""]
["Unit 9",null,null,null,null,null,null,null,null,null,null,null,null,""]
["Unit 10",null,null,null,null,null,null,null,null,null,null,null,null,""]
["Unit 11",null,null,null,null,null,null,null,null,null,null,null,null,""]
["Unit 12",null,null,null,null,null,null,null,null,null,null,null,null,""]
["Unit 13",null,null,null,null,null,null,null,null,null,null,null,null,""]
["Unit 14",null,null,null,null,null,null,null,null,null,null,null,null,""]
["Unit 15",null,null,null,null,null,null,null,null,null,null,null,null,""]
["Unit 16",null,null,null,null,null,null,null,null,null,null,null,null,""]
["Unit 17",null,null,null,null,null,null,null,null,null,null,null,null,""]
["Unit 18",null,null,null,null,null,null,null,null,null,null,null,null,""]
["Unit 19",null,null,null,null,null,null,null,null,null,null,null,null,""]
["Unit 20",null,null,null,null,null,null,null,null,null,null,null,null,""]
["Unit 21",null,null,null,null,null,null,null,null,null,null,null,null,""]
["Unit 22",null,null,null,null,null,null,null,null,null,null,null,null,""]
["Unit 23",null,null,null,null,null,null,null,null,null,null,null,null,""]
["Unit 24",null,null,null,null,null,null,null,null,null,null,null,null,""]
["Unit 25",null,null,null,null,null,null,null,null,null,null,null,null,""]
["Unit 26",null,null,null,null,null,null,null,null,null,null,null,null,""]
["Unit 27",null,null,null,null,null,null,null,null,null,null,null,null,""]
["Unit 28",null,null,null,null,null,null,null,null,null,null,null,null,""]
["Unit 29",null,null,null,null,null,null,null,null,null,null,null,null,""]
["Unit 30",null,null,null,null,null,null,null,null,null,null,null,null,""]
["Unit 31",null,null,null,null,null,null,null,null,null,null,null,null,""]
["Unit 32",null,null,null,null,null,null,null,null,null,null,null,null,""]
["Unit 33",null,null,null,null,null,null,null,null,null,null,null,null,""]
["Unit 34",null,null,null,null,null,null,null,null,null,null,null,null,""]
["Unit 35",null,null,null,null,null,null,null,null,null,null,null,null,""]
["Unit 36",null,null,null,null,null,null,null,null,null,null,null,null,""]
["Unit 37",null,null,null,null,null,null,null,null,null,null,null,null,""]
["Unit 38",null,null,null,null,null,null,null,null,null,null,null,null,""]
["Unit 39",null,null,null,null,null,null,null,null,null,null,null,null,""]
["Unit 40",null,null,null,null,null,null,null,null,null,null,null,null,""]
["Unit 41",null,null,null,null,null,null,null,null,null,null,null,null,""]
["Unit 42",null,null,null,null,null,null,null,null,null,null,null,null,""]
["Unit 43",null,null,null,null,null,null,null,null,null,null,null,null,""]
["Unit 44",null,null,null,null,null,null,null,null,null,null,null,null,""]
["Unit 45",null,null,null,null,null,null,null,null,null,null,null,null,""]

{"sheet":"4 Bedroom Analysis","index":5,"n_rows":46,"n_cols":14,"rows_kept":46,"cut":false,"hidden":false,"merged":[]}
["Unit","Month 1","Month 2","Month 3","Month 4","Month 5","Month 6","Month 7","Month 8","Month 9","Month 10","Month 11","Month 12","Average"]
["Unit 1",null,null,null,null,null,null,null,null,null,null,null,null,{"$f":"IFERROR(AVERAGE(B2:M2),\"\")","v":""}]
["Unit 2",null,null,null,null,null,null,null,null,null,null,null,null,{"$f":"IFERROR(AVERAGE(B3:M3),\"\")","v":""}]
["Unit 3",null,null,null,null,null,null,null,null,null,null,null,null,""]
["Unit 4",null,null,null,null,null,null,null,null,null,null,null,null,""]
["Unit 5",null,null,null,null,null,null,null,null,null,null,null,null,""]
["Unit 6",null,null,null,null,null,null,null,null,null,null,null,null,""]
["Unit 7",null,null,null,null,null,null,null,null,null,null,null,null,""]
["Unit 8",null,null,null,null,null,null,null,null,null,null,null,null,""]
["Unit 9",null,null,null,null,null,null,null,null,null,null,null,null,""]
["Unit 10",null,null,null,null,null,null,null,null,null,null,null,null,""]
["Unit 11",null,null,null,null,null,null,null,null,null,null,null,null,""]
["Unit 12",null,null,null,null,null,null,null,null,null,null,null,null,""]
["Unit 13",null,null,null,null,null,null,null,null,null,null,null,null,""]
["Unit 14",null,null,null,null,null,null,null,null,null,null,null,null,""]
["Unit 15",null,null,null,null,null,null,null,null,null,null,null,null,""]
["Unit 16",null,null,null,null,null,null,null,null,null,null,null,null,""]
["Unit 17",null,null,null,null,null,null,null,null,null,null,null,null,""]
["Unit 18",null,null,null,null,null,null,null,null,null,null,null,null,""]
["Unit 19",null,null,null,null,null,null,null,null,null,null,null,null,""]
["Unit 20",null,null,null,null,null,null,null,null,null,null,null,null,""]
["Unit 21",null,null,null,null,null,null,null,null,null,null,null,null,""]
["Unit 22",null,null,null,null,null,null,null,null,null,null,null,null,""]
["Unit 23",null,null,null,null,null,null,null,null,null,null,null,null,""]
["Unit 24",null,null,null,null,null,null,null,null,null,null,null,null,""]
["Unit 25",null,null,null,null,null,null,null,null,null,null,null,null,""]
["Unit 26",null,null,null,null,null,null,null,null,null,null,null,null,""]
["Unit 27",null,null,null,null,null,null,null,null,null,null,null,null,""]
["Unit 28",null,null,null,null,null,null,null,null,null,null,null,null,""]
["Unit 29",null,null,null,null,null,null,null,null,null,null,null,null,""]
["Unit 30",null,null,null,null,null,null,null,null,null,null,null,null,""]
["Unit 31",null,null,null,null,null,null,null,null,null,null,null,null,""]
["Unit 32",null,null,null,null,null,null,null,null,null,null,null,null,""]
["Unit 33",null,null,null,null,null,null,null,null,null,null,null,null,""]
["Unit 34",null,null,null,null,null,null,null,null,null,null,null,null,""]
["Unit 35",null,null,null,null,null,null,null,null,null,null,null,null,""]
["Unit 36",null,null,null,null,null,null,null,null,null,null,null,null,""]
["Unit 37",null,null,null,null,null,null,null,null,null,null,null,null,""]
["Unit 38",null,null,null,null,null,null,null,null,null,null,null,null,""]
["Unit 39",null,null,null,null,null,null,null,null,null,null,null,null,""]
["Unit 40",null,null,null,null,null,null,null,null,null,null,null,null,""]
["Unit 41",null,null,null,null,null,null,null,null,null,null,null,null,""]
["Unit 42",null,null,null,null,null,null,null,null,null,null,null,null,""]
["Unit 43",null,null,null,null,null,null,null,null,null,null,null,null,""]
["Unit 44",null,null,null,null,null,null,null,null,null,null,null,null,""]
["Unit 45",null,null,null,null,null,null,null,null,null,null,null,null,""]

{"sheet":"5 Bedroom Analysis","index":6,"n_rows":46,"n_cols":14,"rows_kept":46,"cut":false,"hidden":false,"merged":[]}
["Unit","Month 1","Month 2","Month 3","Month 4","Month 5","Month 6","Month 7","Month 8","Month 9","Month 10","Month 11","Month 12","Average"]
["Unit 1",null,null,null,null,null,null,null,null,null,null,null,null,{"$f":"IFERROR(AVERAGE(B2:M2),\"\")","v":""}]
["Unit 2",null,null,null,null,null,null,null,null,null,null,null,null,{"$f":"IFERROR(AVERAGE(B3:M3),\"\")","v":""}]
["Unit 3",null,null,null,null,null,null,null,null,null,null,null,null,""]
["Unit 4",null,null,null,null,null,null,null,null,null,null,null,null,""]
["Unit 5",null,null,null,null,null,null,null,null,null,null,null,null,""]
["Unit 6",null,null,null,null,null,null,null,null,null,null,null,null,""]
["Unit 7",null,null,null,null,null,null,null,null,null,null,null,null,""]
["Unit 8",null,null,null,null,null,null,null,null,null,null,null,null,""]
["Unit 9",null,null,null,null,null,null,null,null,null,null,null,null,""]
["Unit 10",null,null,null,null,null,null,null,null,null,null,null,null,""]
["Unit 11",null,null,null,null,null,null,null,null,null,null,null,null,""]
["Unit 12",null,null,null,null,null,null,null,null,null,null,null,null,""]
["Unit 13",null,null,null,null,null,null,null,null,null,null,null,null,""]
["Unit 14",null,null,null,null,null,null,null,null,null,null,null,null,""]
["Unit 15",null,null,null,null,null,null,null,null,null,null,null,null,""]
["Unit 16",null,null,null,null,null,null,null,null,null,null,null,null,""]
["Unit 17",null,null,null,null,null,null,null,null,null,null,null,null,""]
["Unit 18",null,null,null,null,null,null,null,null,null,null,null,null,""]
["Unit 19",null,null,null,null,null,null,null,null,null,null,null,null,""]
["Unit 20",null,null,null,null,null,null,null,null,null,null,null,null,""]
["Unit 21",null,null,null,null,null,null,null,null,null,null,null,null,""]
["Unit 22",null,null,null,null,null,null,null,null,null,null,null,null,""]
["Unit 23",null,null,null,null,null,null,null,null,null,null,null,null,""]
["Unit 24",null,null,null,null,null,null,null,null,null,null,null,null,""]
["Unit 25",null,null,null,null,null,null,null,null,null,null,null,null,""]
["Unit 26",null,null,null,null,null,null,null,null,null,null,null,null,""]
["Unit 27",null,null,null,null,null,null,null,null,null,null,null,null,""]
["Unit 28",null,null,null,null,null,null,null,null,null,null,null,null,""]
["Unit 29",null,null,null,null,null,null,null,null,null,null,null,null,""]
["Unit 30",null,null,null,null,null,null,null,null,null,null,null,null,""]
["Unit 31",null,null,null,null,null,null,null,null,null,null,null,null,""]
["Unit 32",null,null,null,null,null,null,null,null,null,null,null,null,""]
["Unit 33",null,null,null,null,null,null,null,null,null,null,null,null,""]
["Unit 34",null,null,null,null,null,null,null,null,null,null,null,null,""]
["Unit 35",null,null,null,null,null,null,null,null,null,null,null,null,""]
["Unit 36",null,null,null,null,null,null,null,null,null,null,null,null,""]
["Unit 37",null,null,null,null,null,null,null,null,null,null,null,null,""]
["Unit 38",null,null,null,null,null,null,null,null,null,null,null,null,""]
["Unit 39",null,null,null,null,null,null,null,null,null,null,null,null,""]
["Unit 40",null,null,null,null,null,null,null,null,null,null,null,null,""]
["Unit 41",null,null,null,null,null,null,null,null,null,null,null,null,""]
["Unit 42",null,null,null,null,null,null,null,null,null,null,null,null,""]
["Unit 43",null,null,null,null,null,null,null,null,null,null,null,null,""]
["Unit 44",null,null,null,null,null,null,null,null,null,null,null,null,""]
["Unit 45",null,null,null,null,null,null,null,null,null,null,null,null,""]